bitfinex/quotes_SOLUSD_20240708
["timestamp","ask_amount","ask_price","bid_price","bid_amount"]
[1720443469487,1.77129191,140.81,140.72,0.17]
[1720443469787,1.77129191,140.81,140.71,0.2]
[1720443470090,21.77129191,140.81,140.71,0.2]
[1720443470669,0.17,140.8,140.71,0.2]
[1720443470883,0.34,140.8,140.71,0.2]
[1720443471191,0.17,140.78,140.71,0.2]
[1720443471399,0.17,140.76,140.71,0.2]
[1720443471693,1.94129191,140.76,140.71,0.2]
[1720443472272,0.17,140.75,140.61,106.76834086]
[1720443473467,0.17,140.73,140.61,6.76834086]
[1720443473668,1.94129191,140.73,140.61,106.76834086]
[1720443473869,1.94129191,140.73,140.61,6.76834086]
[1720443474891,1.94129191,140.73,140.61,0.24214086]
[1720443475088,1.94129191,140.73,140.62,0.17]
[1720443475493,0.17,140.71,140.61,0.24214086]
[1720443475717,1.94129191,140.71,140.61,0.24214086]
[1720443477976,0.17,140.7,140.61,0.24214086]
[1720443478168,0.17,140.69,140.61,0.24214086]
[1720443479362,1.94129191,140.69,140.61,0.24214086]
[1720443479568,0.17,140.7,140.61,0.24214086]
[1720443479768,1.94129191,140.7,140.61,0.24214086]
[1720443480389,1.77129191,140.7,140.61,0.24214086]
[1720443480590,1.77129191,140.71,140.61,0.24214086]
[1720443480776,1.77129191,140.7,140.62,0.17]
[1720443481684,0.17,140.69,140.62,0.17]
[1720443482199,0.17,140.69,140.61,5.93163869]
[1720443482406,1.77129191,140.68,140.61,0.24214086]
[1720443482723,0.17,140.7,140.61,0.24214086]
[1720443483111,1.94129191,140.7,140.61,0.24214086]
[1720443483309,1.94129191,140.71,140.62,0.17]
[1720443483625,6.4321,140.72,140.62,0.17]
[1720443483792,6.4321,140.72,140.62,0.34]
[1720443483986,6.4321,140.72,140.62,0.17]
[1720443484192,1.77129191,140.71,140.62,0.17]
[1720443484514,1.77129191,140.7,140.62,0.17]
[1720443485110,1.77129191,140.7,140.61,0.24214086]
[1720443485423,0.17,140.69,140.61,0.24214086]
[1720443485599,0.34,140.69,140.61,0.24214086]
[1720443485920,0.17,140.69,140.61,0.24214086]
[1720443486126,0.17,140.7,140.65,7.1098]
[1720443486302,0.34,140.7,140.65,7.1098]
[1720443486697,2.11129191,140.7,140.65,7.1098]
[1720443487105,2.11129191,140.7,140.61,0.24214086]
[1720443487106,0.17,140.68,140.61,0.24214086]
[1720443487323,6.1159,140.69,140.61,0.24214086]
[1720443488317,6.0548,140.73,140.62,0.17]
[1720443488616,7.82609191,140.73,140.62,0.34]
[1720443488824,7.82609191,140.73,140.62,0.17]
[1720443489516,7.82609191,140.73,140.62,0.34]
[1720443490029,6.0548,140.73,140.62,0.34]
[1720443490625,7.82609191,140.73,140.62,0.34]
[1720443490809,6.0548,140.73,140.62,0.34]
[1720443491000,6.0548,140.73,140.63,16.3273]
[1720443491202,6.2932,140.77,140.67,100.0]
[1720443491516,6.2932,140.77,140.68,0.34]
[1720443492012,6.2932,140.77,140.69,100.0]
[1720443492214,6.2932,140.77,140.7,0.34]
[1720443492599,1.77129191,140.81,140.7,0.17]
[1720443492805,1.77129191,140.83,140.7,15.68]
[1720443493107,1.77129191,140.82,140.7,15.68]
[1720443493631,1.77129191,140.82,140.71,100.0]
[1720443493807,1.77129191,140.83,140.72,0.17]
[1720443494003,1.77129191,140.83,140.72,0.34]
[1720443494209,13.9533,140.84,140.72,0.34]
[1720443494603,13.9533,140.84,140.73,100.0]
[1720443494798,13.9533,140.84,140.74,0.17]
[1720443495334,21.0536,140.84,140.74,0.17]
[1720443495925,7.1018,140.81,140.74,0.17]
[1720443496122,1.94129191,140.8,140.7,15.34]
[1720443496925,0.17,140.82,140.7,115.34]
[1720443497125,1.94129191,140.82,140.7,115.34]
[1720443497322,1.94129191,140.82,140.71,0.17]
[1720443497631,9.04289191,140.82,140.71,0.17]
[1720443498235,0.17,140.8,140.71,0.17]
[1720443498428,1.94129191,140.8,140.71,0.17]
[1720443498605,0.17,140.8,140.71,0.17]
[1720443498928,1.77129191,140.83,140.72,100.0]
[1720443499136,1.77129191,140.82,140.73,0.17]
[1720443499314,1.77129191,140.82,140.71,0.34]
[1720443500029,0.17,140.81,140.71,0.34]
[1720443501509,6.0386,140.84,140.72,100.0]
[1720443501709,6.0386,140.84,140.74,100.0]
[1720443501948,6.0386,140.84,140.75,0.17]
[1720443503022,0.17,140.83,140.75,0.17]
[1720443504330,8.0847,140.81,140.68,258.1]
[1720443504531,0.17,140.79,140.68,258.1]
[1720443504738,2.11129191,140.79,140.68,258.1]
[1720443504946,1.94129191,140.79,140.68,258.1]
[1720443505148,0.17,140.78,140.68,258.1]
[1720443505320,1.94129191,140.79,140.68,258.1]
[1720443505635,0.17,140.79,140.68,258.1]
[1720443505824,2.11129191,140.8,140.68,258.1]
[1720443506019,0.17,140.78,140.68,258.1]
[1720443506734,1.77129191,140.77,140.68,258.1]
[1720443507031,0.17,140.76,140.66,16.4482]
[1720443507536,0.17,140.77,140.66,16.4482]
[1720443507734,0.17,140.75,140.66,16.4482]
[1720443507941,0.17,140.73,140.63,5.64953124]
[1720443508119,0.17,140.73,140.62,6.1521]
[1720443508320,7.2761,140.73,140.62,11.90003753]
[1720443508619,7.2761,140.73,140.62,6.1521]
[1720443509021,0.17,140.71,140.62,6.1521]
[1720443509741,0.17,140.71,140.63,0.17]
[1720443510642,0.17,140.74,140.63,0.17]
[1720443510851,1.77129191,140.74,140.63,100.34]
[1720443511016,1.77129191,140.75,140.63,100.34]
[1720443512526,0.17,140.74,140.63,100.34]
[1720443512938,0.17,140.75,140.63,100.34]
[1720443513543,1.94129191,140.75,140.63,0.34]
[1720443513728,1.94129191,140.75,140.63,0.17]
[1720443513729,0.17,140.74,140.63,0.17]
[1720443514624,1.94129191,140.75,140.63,0.17]
[1720443514821,1.94129191,140.75,140.63,100.34]
[1720443515427,1.77129191,140.75,140.63,100.34]
[1720443515844,6.1335,140.76,140.65,100.0]
[1720443516046,6.1335,140.76,140.66,0.17]
[1720443516634,6.1335,140.76,140.65,0.34]
[1720443516830,6.1335,140.76,140.65,6.05761387]
[1720443517338,0.17,140.75,140.65,6.05761387]
[1720443517742,1.94129191,140.75,140.65,5.88761387]
[1720443518843,1.94129191,140.75,140.64,38.22]
[1720443519032,0.17,140.73,140.61,24.82324086]
[1720443519239,1.94129191,140.73,140.61,24.82324086]
[1720443519734,0.17,140.72,140.61,24.82324086]
[1720443520449,1.94129191,140.73,140.61,24.82324086]
[1720443520949,1.94129191,140.73,140.62,0.17]
[1720443525034,6.5718,140.69,140.61,13.85578866]
[1720443525356,6.5718,140.69,140.61,5.94108866]
[1720443526050,0.17,140.72,140.61,112.51288866]
[1720443526355,0.17,140.72,140.62,0.17]
[1720443527737,0.17,140.72,140.62,0.34]
[1720443527937,6.3039,140.73,140.63,100.0]
[1720443528449,0.17,140.72,140.64,0.17]
[1720443528756,0.17,140.7,140.61,12.51288866]
[1720443528960,1.94129191,140.7,140.61,12.51288866]
[1720443529134,0.17,140.7,140.61,12.51288866]
[1720443529544,0.17,140.71,140.61,12.51288866]
[1720443530866,0.17,140.71,140.62,0.17]
[1720443532035,0.17,140.72,140.62,0.17]
[1720443532262,6.3039,140.73,140.63,100.0]
[1720443532431,6.3039,140.73,140.64,0.17]
[1720443532629,8.07519191,140.73,140.64,0.17]
[1720443533746,0.17,140.72,140.64,0.17]
[1720443535152,1.94129191,140.72,140.64,0.17]
[1720443542377,1.94129191,140.72,140.61,34.28214086]
[1720443542546,0.17,140.7,140.61,0.24214086]
[1720443542736,1.94129191,140.7,140.61,0.24214086]
[1720443542939,0.17,140.7,140.61,0.24214086]
[1720443543364,9.04869191,140.7,140.61,0.24214086]
[1720443543641,1.94129191,140.7,140.61,0.24214086]
[1720443546041,1.94129191,140.7,140.62,0.17]
[1720443548142,9.04889191,140.7,140.61,0.24214086]
[1720443548549,1.94129191,140.7,140.61,0.24214086]
[1720443548761,1.94129191,140.7,140.62,0.17]
[1720443549672,6.6392,140.71,140.62,0.17]
[1720443549876,6.6392,140.71,140.62,0.34]
[1720443550038,6.6392,140.71,140.64,100.0]
[1720443550241,6.6392,140.71,140.65,0.17]
[1720443550468,7.9147,140.74,140.65,0.34]
[1720443550849,7.9147,140.74,140.65,0.17]
[1720443551042,9.68599191,140.74,140.64,0.34]
[1720443551244,9.68599191,140.74,140.64,0.17]
[1720443551245,8.87729191,140.73,140.64,0.17]
[1720443551476,7.9147,140.74,140.64,100.17]
[1720443551649,7.9147,140.74,140.65,0.17]
[1720443552047,7.9147,140.74,140.66,134.04]
[1720443552250,6.5574,140.75,140.67,0.34]
[1720443552770,6.5574,140.75,140.68,0.47244492]
[1720443552949,6.5574,140.75,140.69,0.17]
[1720443553153,6.0945,140.77,140.7,0.47237776]
[1720443553368,6.0945,140.77,140.71,0.64234418]
[1720443553749,6.0945,140.77,140.71,0.17]
[1720443554170,1.77129191,140.76,140.66,49.5079]
[1720443554351,8.87559191,140.76,140.67,0.17]
[1720443554663,1.77129191,140.76,140.67,0.17]
[1720443554858,0.17,140.75,140.67,0.17]
[1720443555069,0.34,140.75,140.65,5.76617329]
[1720443555376,0.34,140.75,140.63,134.04]
[1720443556053,0.17,140.75,140.63,134.04]
[1720443556572,7.86579191,140.77,140.65,100.0]
[1720443556871,0.17,140.76,140.66,0.17]
[1720443557373,0.17,140.76,140.67,100.0]
[1720443557674,6.0945,140.77,140.69,100.0]
[1720443557874,6.1549,140.81,140.71,134.04]
[1720443558189,6.1549,140.81,140.72,0.17]
[1720443558387,6.1549,140.81,140.72,0.34]
[1720443559050,7.92619191,140.81,140.68,40.55775095]
[1720443559257,7.92619191,140.81,140.67,6.1598]
[1720443559258,7.1042,140.77,140.67,34.04]
[1720443559456,0.17,140.76,140.67,34.04]
[1720443559784,0.17,140.77,140.67,34.04]
[1720443559970,0.17,140.79,140.67,34.04]
[1720443560150,0.34,140.79,140.67,34.04]
[1720443560348,0.17,140.77,140.67,34.04]
[1720443560755,0.17,140.77,140.68,0.17]
[1720443561061,0.17,140.79,140.7,100.0]
[1720443561268,6.1549,140.81,140.71,1.58563705]
[1720443561784,6.1549,140.81,140.71,0.17]
[1720443561951,1.77129191,140.8,140.71,0.17]
[1720443562152,8.87399191,140.8,140.71,0.17]
[1720443562469,0.17,140.79,140.71,0.17]
[1720443562770,0.17,140.79,140.66,24.29311172]
[1720443562771,0.17,140.79,140.66,124.29311172]
[1720443562963,7.4428,140.79,140.67,0.17]
[1720443563155,0.17,140.79,140.68,100.0]
[1720443563358,0.17,140.79,140.69,0.17]
[1720443564258,7.92619191,140.81,140.7,100.0]
[1720443564472,6.1549,140.81,140.71,0.17]
[1720443564872,6.1549,140.81,140.73,100.0]
[1720443565078,6.1549,140.81,140.74,0.17]
[1720443571985,6.4555,140.84,140.74,0.34]
[1720443572284,38.25,140.91,140.81,100.0]
[1720443572285,8.22679191,140.91,140.81,100.0]
[1720443572487,6.4555,140.91,140.82,0.17]
[1720443574371,6.4555,140.91,140.82,0.34]
[1720443576393,6.4555,140.91,140.82,0.17]
[1720443578399,6.4555,140.91,140.83,100.0]
[1720443578566,0.17,140.93,140.84,0.17]
[1720443578985,9.20709191,140.93,140.84,0.17]
[1720443579575,0.17,140.91,140.79,100.0]
[1720443579875,0.17,140.91,140.78,16.0621]
[1720443579876,0.17,140.87,140.78,16.0621]
[1720443580193,1.77129191,140.92,140.78,21.73293302]
[1720443580498,0.17,140.91,140.78,21.73293302]
[1720443580808,0.17,140.89,140.78,21.73293302]
[1720443580998,9.20909191,140.89,140.78,21.73293302]
[1720443581300,9.20909191,140.89,140.79,0.17]
[1720443581588,0.17,140.87,140.74,273.9012]
[1720443581796,0.17,140.85,140.74,121.31992982]
[1720443581984,0.34,140.85,140.74,121.31992982]
[1720443582183,0.17,140.85,140.76,100.0]
[1720443582388,0.17,140.86,140.76,100.0]
[1720443582594,0.34,140.86,140.76,100.0]
[1720443583092,6.3918,140.88,140.76,100.0]
[1720443583296,6.3918,140.88,140.78,100.0]
[1720443583494,6.3918,140.88,140.79,0.17]
[1720443583799,6.3918,140.88,140.79,0.34]
[1720443583999,6.3918,140.88,140.79,0.17]
[1720443584201,6.3918,140.88,140.78,0.34]
[1720443584497,0.17,140.87,140.78,0.17]
[1720443585802,0.17,140.87,140.78,100.17]
[1720443586094,0.17,140.87,140.78,100.34]
[1720443586300,0.17,140.88,140.78,100.34]
[1720443586476,0.17,140.89,140.8,133.96]
[1720443586681,0.17,140.89,140.81,0.17]
[1720443587630,9.03939191,140.89,140.81,0.17]
[1720443587779,0.17,140.88,140.81,0.17]
[1720443588103,0.17,140.88,140.8,0.17]
[1720443589801,7.2682,140.88,140.8,0.17]
[1720443590000,0.34,140.88,140.8,0.17]
[1720443590304,0.17,140.86,140.8,0.17]
[1720443591789,0.17,140.86,140.8,1.58985071]
[1720443594008,0.17,140.86,140.8,0.17]
[1720443594197,0.17,140.87,140.8,0.17]
[1720443596097,0.17,140.88,140.8,0.17]
[1720443596484,0.34,140.88,140.8,0.17]
[1720443597411,0.17,140.88,140.8,0.17]
[1720443597619,0.17,140.89,140.8,0.17]
[1720443597994,1.94129191,140.89,140.8,0.17]
[1720443598333,21.77129191,140.9,140.8,0.17]
[1720443598499,21.77129191,140.9,140.8,0.34]
[1720443599299,28.86849191,140.9,140.8,0.34]
[1720443599499,0.17,140.89,140.8,0.34]
[1720443600214,1.94129191,140.89,140.8,0.17]
[1720443600545,0.17,140.87,140.79,22.4527]
[1720443601025,0.17,140.89,140.8,0.17]
[1720443602034,0.17,140.89,140.8,0.34]
[1720443602740,0.17,140.85,140.79,22.4527]
[1720443603099,0.17,140.83,140.79,15.8492]
[1720443603915,19.51689191,140.88,140.79,15.8492]
[1720443603916,0.17,140.87,140.79,15.8492]
[1720443604107,0.34,140.87,140.79,15.8492]
[1720443604607,7.4387,140.87,140.79,15.8492]
[1720443604951,0.17,140.85,140.79,15.8492]
[1720443605114,7.1011,140.83,140.79,15.8492]
[1720443605313,0.17,140.82,140.79,15.8492]
[1720443605850,1.94129191,140.82,140.79,15.8492]
[1720443606037,1.94129191,140.82,140.75,21.8598]
[1720443606213,1.94129191,140.83,140.75,21.8598]
[1720443606416,0.17,140.84,140.75,21.8598]
[1720443606621,0.17,140.85,140.76,1.41219355]
[1720443607108,0.17,140.85,140.75,21.8598]
[1720443607310,0.17,140.85,140.76,0.17]
[1720443607510,1.94129191,140.85,140.76,0.34]
[1720443607731,9.04109191,140.85,140.76,0.17]
[1720443608046,0.17,140.84,140.75,21.8598]
[1720443608227,0.17,140.81,140.75,21.8598]
[1720443608415,1.94129191,140.81,140.75,21.8598]
[1720443608608,0.17,140.81,140.75,21.8598]
[1720443609227,1.77129191,140.85,140.75,21.8598]
[1720443609425,0.34,140.84,140.75,21.8598]
[1720443609608,0.17,140.82,140.75,21.8598]
[1720443609812,0.17,140.82,140.76,0.17]
[1720443610046,1.94129191,140.82,140.76,0.17]
[1720443610249,1.94129191,140.82,140.75,21.8598]
[1720443610543,9.04259191,140.82,140.75,21.8598]
[1720443610709,0.17,140.81,140.75,21.8598]
[1720443610911,0.17,140.83,140.75,21.8598]
[1720443611112,0.17,140.83,140.76,0.17]
[1720443611514,1.77129191,140.82,140.76,0.17]
[1720443611731,7.2718,140.81,140.75,21.8598]
[1720443611946,0.17,140.81,140.75,21.8598]
[1720443612318,1.77129191,140.89,140.75,121.8598]
[1720443612643,1.77129191,140.89,140.78,15.2874]
[1720443612942,1.77129191,140.9,140.8,6.5556]
[1720443613169,1.77129191,140.9,140.81,15.2874]
[1720443613457,1.77129191,140.9,140.82,0.17]
[1720443613947,7.0987,140.87,140.81,15.2874]
[1720443614447,7.0983,140.88,140.81,15.2874]
[1720443614618,1.77129191,140.87,140.81,15.2874]
[1720443615037,0.17,140.86,140.81,15.2874]
[1720443615644,0.17,140.87,140.81,15.2874]
[1720443616244,0.34,140.87,140.81,15.2874]
[1720443616736,0.17,140.87,140.81,15.2874]
[1720443617448,1.77129191,140.88,140.82,0.17]
[1720443617655,0.17,140.87,140.82,0.17]
[1720443617952,7.2696,140.86,140.81,15.2874]
[1720443618126,0.17,140.84,140.74,39.52060815]
[1720443618441,0.17,140.84,140.75,22.0661]
[1720443618648,0.34,140.84,140.75,22.0661]
[1720443618857,0.17,140.84,140.75,22.0661]
[1720443619028,0.17,140.84,140.75,122.0661]
[1720443619237,53.96,140.91,140.77,15.1688]
[1720443619427,20.0,140.91,140.78,6.4352]
[1720443619646,8.86859191,140.9,140.78,6.4352]
[1720443619849,20.0,140.89,140.78,6.4352]
[1720443620058,8.86949191,140.88,140.78,6.4352]
[1720443620354,8.86969191,140.88,140.79,0.17]
[1720443620517,1.77129191,140.88,140.79,0.17]
[1720443621445,1.77129191,140.88,140.78,6.4352]
[1720443621446,0.17,140.87,140.78,6.4352]
[1720443622143,7.0992,140.86,140.78,6.4352]
[1720443622429,0.17,140.85,140.78,6.4352]
[1720443622633,9.21099191,140.85,140.78,6.4352]
[1720443622820,0.17,140.8,140.77,15.1688]
[1720443623023,0.17,140.78,140.73,16.1528]
[1720443623249,1.94129191,140.78,140.73,16.1528]
[1720443623436,0.17,140.77,140.73,16.1528]
[1720443623635,0.17,140.77,140.66,33.96]
[1720443623636,0.17,140.76,140.66,22.276]
[1720443623845,0.17,140.75,140.66,22.276]
[1720443624031,0.17,140.73,140.66,29.3788]
[1720443624355,0.17,140.77,140.67,100.0]
[1720443624549,0.17,140.77,140.68,16.1528]
[1720443625063,0.34,140.77,140.68,16.1528]
[1720443625230,0.17,140.77,140.68,16.1528]
[1720443625556,7.1043,140.76,140.68,16.1528]
[1720443625728,7.2738,140.77,140.68,16.1528]
[1720443625927,0.17,140.76,140.68,16.1528]
[1720443626123,0.17,140.75,140.68,16.1528]
[1720443626351,7.2748,140.75,140.68,16.1528]
[1720443626549,0.17,140.73,140.68,16.1528]
[1720443626858,1.94129191,140.73,140.68,16.1528]
[1720443627167,0.17,140.72,140.68,16.1528]
[1720443628835,0.17,140.73,140.68,16.1528]
[1720443629033,0.34,140.74,140.68,16.1528]
[1720443629242,0.17,140.72,140.68,16.1528]
[1720443629947,0.17,140.7,140.66,6.1232]
[1720443630157,1.94129191,140.7,140.66,6.1232]
[1720443630345,0.17,140.7,140.66,6.1232]
[1720443630553,0.17,140.69,140.66,6.1232]
[1720443631048,0.17,140.69,140.64,16.2397]
[1720443631532,0.17,140.7,140.64,16.2397]
[1720443631938,1.94129191,140.7,140.64,16.2397]
[1720443632659,0.17,140.69,140.64,16.2397]
[1720443633258,0.17,140.69,140.62,6.0276]
[1720443633762,0.17,140.68,140.62,6.0276]
[1720443634070,1.94129191,140.68,140.62,6.0276]
[1720443634442,0.17,140.67,140.62,6.0276]
[1720443635342,7.2791,140.67,140.61,15.72064086]
[1720443635547,0.17,140.66,140.61,15.72064086]
[1720443637469,1.77129191,140.67,140.61,15.72064086]
[1720443637653,1.77129191,140.7,140.61,15.72064086]
[1720443637854,1.77129191,140.7,140.62,0.17]
[1720443638176,13.9607309,140.76,140.62,0.17]
[1720443638177,1.77129191,140.75,140.64,115.0565]
[1720443638388,38.25,140.83,140.65,0.34]
[1720443638389,5.57709068,140.82,140.65,0.34]
[1720443638540,7.1036,140.78,140.66,22.2009]
[1720443638740,1.77129191,140.77,140.67,0.17]
[1720443638964,1.77129191,140.76,140.67,0.17]
[1720443639651,1.77129191,140.76,140.67,1.41831599]
[1720443639842,1.77129191,140.75,140.66,22.2009]
[1720443640049,7.1052,140.75,140.66,22.2009]
[1720443640252,1.77129191,140.74,140.66,22.2009]
[1720443640470,1.77129191,140.73,140.66,22.2009]
[1720443640779,0.17,140.73,140.66,22.2009]
[1720443640948,2.11129191,140.73,140.66,22.2009]
[1720443641973,0.17,140.73,140.66,22.2009]
[1720443642177,0.17,140.72,140.66,22.2009]
[1720443642670,0.34,140.72,140.66,22.2009]
[1720443643246,9.21759191,140.72,140.66,22.2009]
[1720443643652,2.11129191,140.72,140.66,22.2009]
[1720443644461,0.17,140.72,140.66,22.2009]
[1720443644667,1.94129191,140.73,140.66,22.2009]
[1720443644848,21.94129191,140.74,140.67,0.17]
[1720443645048,1.77129191,140.73,140.67,0.17]
[1720443645249,0.17,140.74,140.67,0.17]
[1720443645453,1.94129191,140.74,140.66,22.2009]
[1720443645656,9.04659191,140.74,140.66,22.2009]
[1720443646371,0.17,140.73,140.66,22.2009]
[1720443647775,0.17,140.71,140.66,22.2009]
[1720443647983,1.94129191,140.71,140.66,22.2009]
[1720443648288,0.17,140.7,140.66,16.0713]
[1720443648583,0.17,140.69,140.66,16.0713]
[1720443649765,1.77129191,140.72,140.66,16.0713]
[1720443649949,12.2921101,140.79,140.66,16.0713]
[1720443649950,1.94129191,140.71,140.66,16.0713]
[1720443650577,1.94129191,140.71,140.63,16.5048]
[1720443650956,0.17,140.7,140.63,16.5048]
[1720443651153,36.14129191,140.7,140.63,16.5048]
[1720443651465,0.17,140.69,140.63,16.5048]
[1720443653577,0.17,140.67,140.63,16.5048]
[1720443653871,7.2789,140.67,140.63,16.5048]
[1720443654171,7.2789,140.67,140.61,0.24214086]
[1720443654172,0.17,140.66,140.61,0.24214086]
[1720443654473,1.7927962,140.71,140.62,15.1372]
[1720443654647,1.77129191,140.71,140.62,15.1372]
[1720443654851,1.77129191,140.7,140.62,15.1372]
[1720443655764,1.77129191,140.71,140.63,0.17]
[1720443655971,1.77129191,140.7,140.63,0.17]
[1720443656285,1.77129191,140.71,140.63,0.17]
[1720443656454,7.106,140.73,140.63,0.17]
[1720443656973,1.77129191,140.72,140.63,0.17]
[1720443657354,1.77129191,140.74,140.65,49.8308]
[1720443657567,1.77129191,140.77,140.66,0.17]
[1720443657769,1.77129191,140.76,140.66,0.17]
[1720443658683,0.17,140.75,140.66,0.17]
[1720443659778,20.17,140.75,140.66,0.17]
[1720443659980,1.77129191,140.76,140.69,15.2246]
[1720443660163,1.77129191,140.78,140.69,15.2246]
[1720443660477,8.87459191,140.78,140.69,15.2246]
[1720443660650,7.1038,140.77,140.69,15.2246]
[1720443660851,1.77129191,140.76,140.69,15.2246]
[1720443661486,0.34,140.75,140.69,15.2246]
[1720443662076,0.17,140.74,140.69,15.2246]
[1720443662679,0.17,140.75,140.69,15.2246]
[1720443663395,0.17,140.74,140.69,15.2246]
[1720443663761,1.77129191,140.8,140.7,6.421]
[1720443663951,17.7501,140.85,140.7,6.421]
[1720443663952,1.77129191,140.79,140.71,15.8404]
[1720443664576,7.1021,140.81,140.71,15.8404]
[1720443664755,1.77129191,140.8,140.71,15.8404]
[1720443665373,0.17,140.76,140.71,15.8404]
[1720443665656,2.11129191,140.77,140.71,15.8404]
[1720443665856,1.77129191,140.76,140.71,15.8404]
[1720443666086,0.34,140.75,140.71,15.8404]
[1720443666566,2.11129191,140.75,140.71,15.8404]
[1720443666773,7.1063,140.72,140.67,15.0794]
[1720443666980,20.0,140.81,140.67,15.0794]
[1720443666981,0.17,140.7,140.67,15.0794]
[1720443667358,21.77129191,140.75,140.67,15.0794]
[1720443667560,0.17,140.74,140.67,15.0794]
[1720443667780,1.77129191,140.8,140.69,15.2285]
[1720443668085,1.77129191,140.85,140.74,34.03]
[1720443668291,1.77129191,140.85,140.77,15.5256]
[1720443668502,1.77129191,140.88,140.78,1.58861283]
[1720443668787,7.0988,140.87,140.78,1.58861283]
[1720443668986,1.77129191,140.86,140.78,1.58861283]
[1720443669285,1.77129191,140.85,140.78,1.58861283]
[1720443669693,1.77129191,140.87,140.79,21.9522]
[1720443669993,1.77129191,140.89,140.8,0.17]
[1720443670280,1.77129191,140.89,140.8,1.58841132]
[1720443670461,7.0982,140.88,140.79,21.9522]
[1720443670656,1.77129191,140.87,140.79,21.9522]
[1720443670895,7.1003,140.84,140.79,21.9522]
[1720443671068,0.17,140.82,140.79,21.9522]
[1720443671466,1.77129191,140.86,140.79,21.9522]
[1720443671682,1.94129191,140.85,140.79,21.9522]
[1720443671887,0.17,140.84,140.79,21.9522]
[1720443672566,0.17,140.82,140.79,15.5256]
[1720443672766,0.17,140.8,140.76,15.7741]
[1720443672971,2.11129191,140.8,140.76,15.7741]
[1720443673382,0.17,140.78,140.76,15.7741]
[1720443673694,0.34,140.78,140.76,15.7741]
[1720443673867,7.2733,140.78,140.76,15.7741]
[1720443674193,0.17,140.76,140.72,22.22]
[1720443674380,1.94129191,140.76,140.72,22.22]
[1720443674586,9.04559191,140.76,140.72,22.22]
[1720443674787,9.04559191,140.76,140.72,16.1002]
[1720443674788,0.17,140.75,140.72,16.1002]
[1720443675094,0.17,140.74,140.69,15.5418]
[1720443675385,2.11129191,140.74,140.66,15.5418]
[1720443675587,21.94129191,140.74,140.66,15.5418]
[1720443675777,0.17,140.73,140.66,15.5418]
[1720443675972,1.77129191,140.78,140.66,15.5418]
[1720443676189,21.77129191,140.78,140.68,15.107]
[1720443676382,7.1018,140.81,140.68,15.107]
[1720443676695,1.77129191,140.8,140.7,15.107]
[1720443676993,1.77129191,140.79,140.71,0.17]
[1720443677567,1.77129191,140.81,140.71,0.17]
[1720443677784,7.1036,140.78,140.7,15.107]
[1720443677985,7.1044,140.76,140.7,15.107]
[1720443678291,1.77129191,140.81,140.71,0.17]
[1720443678593,1.77129191,140.83,140.73,16.3611]
[1720443678768,1.77129191,140.87,140.75,16.3611]
[1720443678972,1.77129191,140.87,140.76,0.17]
[1720443679168,1.77129191,140.87,140.77,23.024]
[1720443679383,1.77129191,140.88,140.78,0.17]
[1720443680195,1.77129191,140.91,140.79,16.1795]